bitfinex/quotes_ETHUSD_20260125
["timestamp","ask_amount","ask_price","bid_price","bid_amount"]
[1769380356854,11.93461548,2799.7,2798.6,0.89529919]
[1769380357324,11.93461548,2799.7,2798.6,0.002]
[1769380357646,11.93461548,2799.7,2798.8,0.89321977]
[1769380357859,13.12707703,2799.6,2798.6,0.002]
[1769380358575,0.2335703,2799.5,2798.6,0.002]
[1769380358773,11.93361548,2799.4,2798.5,0.002]
[1769380358975,11.93361548,2799.4,2798.8,0.002]
[1769380359195,0.10011979,2798.9,2797.2,0.002]
[1769380359476,0.10011979,2798.9,2796.8,0.002]
[1769380359477,11.93361548,2798.0,2796.8,0.002]
[1769380359837,11.93361548,2798.0,2796.8,0.89584973]
[1769380360168,11.93361548,2798.0,2796.8,0.89586332]
[1769380360372,11.93361548,2797.8,2796.8,0.89585596]
[1769380360669,11.93361548,2797.8,2796.8,0.002]
[1769380360841,12.82717682,2797.8,2796.8,0.002]
[1769380361235,11.93361548,2797.8,2796.8,0.002]
[1769380365872,12.82718238,2797.8,2796.8,0.002]
[1769380366034,11.93361548,2797.6,2796.8,0.002]
[1769380370550,11.93361548,2797.6,2797.0,0.002]
[1769380372270,11.93361548,2797.6,2796.6,0.002]
[1769380372591,12.82724786,2797.6,2796.6,0.002]
[1769380372895,11.93361548,2796.6,2794.6,3.57827446]
[1769380373057,11.93361548,2796.6,2795.4,0.89430836]
[1769380373058,12.68161548,2796.6,2795.4,0.89430836]
[1769380373252,11.93361548,2796.6,2795.5,0.89427441]
[1769380373458,11.93361548,2796.6,2795.4,0.89432222]
[1769380373658,11.93361548,2796.4,2795.4,1.34148877]
[1769380374182,11.93361548,2796.4,2795.4,1.34149598]
[1769380374486,1.19336155,2796.5,2795.4,0.89430793]
[1769380375257,13.12697703,2796.5,2795.4,0.89431209]
[1769380376391,13.12697703,2796.5,2795.2,0.89439038]
[1769380378061,13.12697703,2796.5,2795.2,12.66184051]
[1769380378397,11.93361548,2796.8,2795.5,11.86756992]
[1769380378558,12.68261548,2797.4,2795.5,11.86756992]
[1769380380843,11.93361548,2797.0,2795.6,0.89426241]
[1769380381396,11.93361548,2797.0,2795.7,0.10011979]
[1769380381610,11.93361548,2797.0,2795.7,11.86756992]
[1769380381908,1.19336155,2796.9,2795.8,13.04363336]
[1769380382496,13.12697703,2796.9,2795.8,1.27618323]
[1769380382696,13.12697703,2796.9,2795.7,0.10011979]
[1769380382933,13.12697703,2796.9,2795.8,0.89419844]
[1769380386949,13.12697703,2796.9,2794.4,0.43946438]
[1769380387159,0.75436384,2795.8,2794.5,11.83122355]
[1769380387434,13.12409494,2795.6,2794.3,0.002]
[1769380387633,13.12409494,2795.6,2794.3,0.10211979]
[1769380387840,0.2335703,2795.4,2794.5,0.10011979]
[1769380388005,1.31240949,2795.5,2794.5,0.10011979]
[1769380388407,13.12409494,2795.4,2794.3,0.002]
[1769380389101,12.89052464,2795.2,2794.3,0.002]
[1769380389504,12.89052464,2795.0,2793.7,0.99498353]
[1769380389837,0.89435838,2795.3,2793.3,0.10011979]
[1769380389838,12.89052464,2794.8,2793.3,0.10011979]
[1769380390001,12.89052464,2794.8,2793.6,0.89489457]
[1769380390204,1.28905246,2794.9,2793.1,0.002]
[1769380390205,12.89052464,2794.3,2793.1,0.002]
[1769380390434,1.28905246,2794.9,2793.1,0.002]
[1769380390435,12.89052464,2794.1,2793.1,0.002]
[1769380391110,12.89052464,2794.4,2793.1,0.002]
[1769380391330,14.4131474,2794.3,2793.1,0.002]
[1769380392807,13.12409494,2793.8,2792.1,2.35275221]
[1769380393028,13.12409494,2793.6,2792.1,1.45738933]
[1769380393214,13.12409494,2793.6,2792.1,2.352766]
[1769380393433,12.89052464,2793.2,2792.2,0.2352766]
[1769380393632,1.40189655,2793.5,2792.2,0.2352766]
[1769380393838,0.2335703,2793.8,2792.2,12.06450015]
[1769380394023,13.12409494,2793.8,2792.2,0.2352766]
[1769380394456,13.12409494,2793.8,2792.2,12.06450015]
[1769380395149,13.12409494,2793.8,2792.3,0.89531927]
[1769380395314,12.89052464,2793.8,2792.3,0.89531927]
[1769380395519,1.28905246,2793.8,2792.4,13.4833332]
[1769380395723,12.36691059,2793.8,2792.4,1.65410965]
[1769380396019,12.36691059,2793.8,2792.3,0.89531927]
[1769380396858,12.23891059,2794.1,2792.3,12.7667811]
[1769380397021,0.2335703,2794.0,2792.3,12.7667811]
[1769380397357,0.2335703,2794.0,2792.5,11.87146183]
[1769380397546,12.47248089,2794.0,2792.5,11.87146183]
[1769380397750,12.23891059,2793.8,2792.6,1.19715816]
[1769380397923,12.23891059,2793.8,2792.4,0.10011979]
[1769380398126,12.23891059,2793.6,2792.3,0.89531927]
[1769380399462,13.48615868,2793.9,2792.3,12.7667811]
[1769380399760,12.23891059,2793.9,2792.3,12.7667811]
[1769380401757,12.23891059,2793.9,2792.2,1.13060631]
[1769380401758,12.23891059,2793.5,2792.2,1.13060631]
[1769380402358,12.23891059,2793.5,2792.3,0.89531531]
[1769380404282,12.23891059,2793.5,2792.2,1.13060806]
[1769380404591,12.23891059,2793.3,2792.3,0.61694904]
[1769380405287,12.23891059,2793.3,2792.2,0.8475571]
[1769380406886,1.31338295,2793.4,2792.2,12.71901893]
[1769380407091,13.55229354,2793.4,2792.2,12.76681316]
[1769380407384,12.23891059,2793.4,2792.3,1.78056078]
[1769380407572,12.23891059,2793.4,2792.2,0.89535133]
[1769380407772,12.23891059,2793.4,2792.4,0.002]
[1769380408145,0.001,2793.3,2792.4,0.002]
[1769380409782,0.001,2793.3,2792.4,11.87346183]
[1769380410468,0.001,2793.3,2792.5,12.76671697]
[1769380410674,0.001,2793.3,2792.6,1.63497376]
[1769380410997,0.001,2793.3,2792.6,13.50643559]
[1769380412295,0.001,2793.3,2792.7,0.89519103]
[1769380412602,0.89472895,2794.2,2792.7,12.76665286]
[1769380412761,13.13363954,2794.2,2792.8,1.79823908]
[1769380413773,13.13363954,2794.2,2792.7,0.89519103]
[1769380414071,12.75232198,2794.0,2792.7,0.89519103]
[1769380414266,12.75232198,2794.0,2792.4,12.38632139]
[1769380414267,13.64710979,2794.0,2792.5,0.89525514]
[1769380415285,13.64710979,2794.0,2792.5,13.27957653]
[1769380415467,14.47493309,2793.9,2792.6,1.68625971]
[1769380416687,14.47493309,2793.9,2792.7,0.89519103]
[1769380417083,15.36974071,2793.9,2792.6,0.89520451]
[1769380417283,14.47493309,2793.9,2792.6,0.89520451]
[1769380417484,15.36976874,2793.9,2792.5,13.27955446]
[1769380417680,12.75232198,2793.7,2792.5,13.27955446]
[1769380417886,12.75232198,2793.7,2792.4,0.89726419]
[1769380418277,12.75232198,2793.7,2792.5,0.89525207]
[1769380418466,12.75232198,2793.7,2792.4,0.897286]
[1769380418898,12.75232198,2793.7,2792.4,0.002]
[1769380419215,12.75232198,2793.5,2792.4,0.002]
[1769380420098,12.75332198,2793.5,2792.5,0.002]
[1769380420998,12.75232198,2793.3,2792.5,0.002]
[1769380423400,0.89595132,2793.5,2792.5,0.002]
[1769380423401,12.75232198,2793.1,2792.5,0.002]
[1769380427894,13.64738554,2793.1,2792.5,0.002]
[1769380428097,1.36473855,2793.0,2792.5,0.002]
[1769380428707,14.11706053,2793.0,2792.5,0.002]
[1769380431183,1.36473855,2793.0,2792.5,0.002]
[1769380431494,12.75232198,2793.3,2792.5,0.002]
[1769380431691,13.64732241,2793.3,2792.5,0.002]
[1769380432004,12.75232198,2793.3,2792.5,0.002]
[1769380432314,12.75232198,2793.3,2792.6,0.002]
[1769380434378,0.751,2793.5,2792.6,0.002]
[1769380434584,0.31106345,2793.4,2792.6,0.002]
[1769380434799,0.31106345,2793.4,2792.6,12.38632139]
[1769380435014,0.001,2793.5,2792.6,12.38632139]
[1769380435507,0.001,2793.5,2792.8,12.38432139]
[1769380437515,0.001,2793.5,2792.8,13.27947316]
[1769380437887,0.001,2793.5,2793.0,12.38432139]
[1769380440217,0.001,2793.5,2793.0,14.60735413]
[1769380440506,0.75,2794.4,2793.0,14.60735413]
[1769380440507,13.64701739,2794.3,2793.0,14.60735413]
[1769380440714,12.75232198,2794.3,2793.0,14.60735413]
[1769380441185,13.64695526,2794.5,2793.0,14.60735413]
[1769380441592,3.8,2794.6,2793.0,14.60735413]
[1769380441788,0.38,2794.5,2793.4,12.38432139]
[1769380441990,12.75232198,2794.8,2793.4,12.38432139]
[1769380442791,13.64684462,2794.8,2793.4,12.38432139]
[1769380443017,12.75232198,2794.8,2793.4,12.38432139]
[1769380443422,0.75,2795.1,2793.4,12.38432139]
[1769380443423,13.47574572,2795.1,2793.4,12.38432139]
[1769380443626,1.34757457,2795.0,2793.6,12.72302986]
[1769380443824,2.24204597,2795.0,2793.7,0.8948706]
[1769380444016,1.34757457,2795.0,2793.8,12.72302986]
[1769380444622,0.001,2794.1,2794.0,0.03541]
[1769380444831,13.47666385,2795.3,2794.1,12.72302986]
[1769380445002,12.58129659,2795.1,2794.0,0.03541]
[1769380446594,13.47572801,2795.1,2794.0,0.03541]
[1769380447718,12.58129659,2795.1,2794.0,0.03541]
[1769380448016,13.47573411,2795.1,2794.0,0.03541]
[1769380449116,13.47573411,2795.1,2794.0,13.65320714]
[1769380449117,12.58129659,2795.1,2794.0,13.65320714]
[1769380449322,1.51811121,2795.0,2794.0,13.65320714]
[1769380449713,0.001,2795.3,2794.0,13.65320714]
[1769380452052,0.001,2795.3,2794.0,14.13779064]
[1769380452243,0.001,2795.3,2794.2,12.72302986]
[1769380452394,0.128,2796.2,2794.2,13.20761336]
[1769380452600,1.3603358,2796.1,2794.4,12.72302986]
[1769380452821,13.94163239,2796.1,2794.4,12.72302986]
[1769380453099,13.94163239,2796.1,2794.6,12.72302986]
[1769380453410,13.94163239,2796.1,2794.5,0.89461442]
[1769380453411,1.3603358,2796.1,2794.8,12.72302986]
[1769380453624,12.58129659,2796.8,2794.8,13.20761336]
[1769380453825,0.001,2797.2,2794.7,0.10011979]
[1769380453826,12.58129659,2797.1,2795.0,12.72302986]
[1769380454030,12.58129659,2797.1,2795.1,0.4845835]
[1769380454201,0.001,2797.2,2795.2,12.72302986]
[1769380454402,0.89475702,2797.2,2795.4,12.72302986]
[1769380454639,13.92890195,2797.1,2795.6,12.72302986]
[1769380455142,13.47511139,2797.0,2795.7,13.61726028]
[1769380456914,0.001,2796.8,2795.7,13.61726028]
[1769380458225,0.001,2796.8,2795.5,4.89789771]
[1769380458226,11.87617036,2796.8,2795.5,0.89428933]
[1769380458414,13.0627874,2796.7,2795.6,0.89426003]
[1769380458615,13.0627874,2796.7,2795.6,13.58755205]
[1769380459058,13.0627874,2796.7,2795.7,0.89422981]
[1769380459254,13.0627874,2796.7,2795.6,12.69329202]
[1769380459415,13.0627874,2796.7,2795.6,13.58753075]
[1769380459615,1.39576684,2796.6,2795.6,13.58753075]
[1769380461624,0.001,2796.8,2795.6,13.58753075]
[1769380462842,11.87617036,2796.8,2795.6,13.58753075]
[1769380463438,0.001,2796.8,2795.6,13.58753075]
[1769380463979,0.001,2796.8,2795.6,14.07211425]
[1769380464861,0.001,2796.8,2795.8,12.69329202]
[1769380465032,0.001,2796.8,2796.0,12.69329202]
[1769380465224,0.001,2796.8,2796.2,12.69329202]
[1769380467228,0.001,2796.8,2796.2,0.89406771]
[1769380467561,0.001,2797.2,2796.4,12.69329202]
[1769380467856,11.87517036,2798.1,2796.5,12.69329202]
[1769380468065,1.27686566,2798.0,2796.7,12.69329202]
[1769380468537,12.76853,2798.5,2796.7,12.69329202]
[1769380469558,12.76853,2798.5,2796.6,1.2693292]
[1769380469559,12.76853,2798.5,2796.9,12.69329202]
[1769380469758,12.76853,2798.5,2796.8,0.89387871]
[1769380469959,12.76853,2798.5,2796.9,12.69329202]
[1769380471770,12.76853,2798.5,2797.0,13.58710682]
[1769380471940,11.87517036,2798.3,2797.1,0.59717172]
[1769380472467,11.87517036,2798.3,2797.1,13.29046374]
[1769380473868,11.89680227,2798.6,2797.2,13.55208768]
[1769380475649,12.91801031,2798.9,2797.2,13.55208768]
[1769380475857,0.89311231,2799.2,2797.4,12.65833679]
[1769380476174,13.53890089,2799.3,2797.4,12.75845658]
[1769380478041,13.53890089,2799.3,2797.6,12.65833679]
[1769380478253,13.53890089,2799.3,2797.4,0.89366441]
[1769380478472,11.89680227,2799.1,2797.5,13.93767797]
[1769380481075,11.89680227,2799.1,2797.7,12.65833679]
[1769380481076,0.89317613,2799.0,2797.7,12.65833679]
[1769380481645,0.8842431,2799.0,2797.7,12.65833679]
[1769380481872,12.78104537,2799.0,2797.7,12.65833679]
[1769380483148,12.78104537,2799.0,2797.5,2.17297275]
[1769380483370,11.89680227,2798.8,2797.5,2.17297275]
[1769380483580,11.89680227,2798.8,2797.5,14.83130954]
[1769380484076,1.63546959,2798.9,2797.5,14.83130954]
[1769380485272,2.52867766,2798.9,2797.5,14.83130954]
[1769380485692,2.52867829,2798.9,2797.5,14.83130954]
[1769380485887,2.52867829,2798.9,2797.7,12.65833679]
[1769380486767,14.42548056,2798.9,2797.6,1.84059565]
[1769380487492,14.42548056,2798.9,2797.6,15.39252583]
[1769380487689,0.001,2799.1,2797.6,15.49264562]
[1769380488082,0.001,2799.1,2797.9,12.65833679]
[1769380489367,0.001,2799.1,2798.3,12.65833679]
[1769380489690,0.001,2799.4,2798.3,12.65833679]
[1769380489896,0.001,2799.7,2798.3,12.65833679]
[1769380489897,0.001,2799.7,2798.5,12.65833679]
[1769380490091,0.001,2799.7,2798.7,12.65833679]
[1769380491368,0.001,2799.7,2798.9,12.65833679]
[1769380493403,0.001,2799.7,2799.1,12.65833679]
[1769380495214,12.61181212,2800.7,2799.1,12.65833679]
[1769380495414,3.5703219,2800.9,2799.3,12.65833679]
[1769380495415,12.78937251,2800.9,2799.3,12.65833679]
[1769380495603,1.27728944,2800.8,2799.5,12.65833679]
[1769380496294,13.17409171,2800.8,2799.4,1.31171576]
[1769380497424,13.17409171,2800.8,2799.4,13.97005255]
[1769380498094,0.89263398,2800.7,2799.5,13.5513534]
[1769380498293,0.89263398,2800.7,2799.6,1.84059565]
[1769380499435,12.78938921,2800.9,2799.6,14.49893244]
[1769380499800,11.89680227,2800.9,2799.6,14.49893244]
[1769380500196,11.89680227,2800.9,2799.8,12.65833679]
[1769380500428,12.78929986,2801.2,2799.9,14.01346575]
[1769380500732,0.001,2801.3,2799.9,1.35512896]
[1769380500733,12.79026389,2801.3,2799.9,1.35512896]
[1769380500894,12.79026389,2801.3,2799.7,0.89295281]
[1769380501294,12.79026389,2801.3,2799.7,13.5512896]
[1769380501791,12.79026389,2801.3,2799.6,1.84059565]
[1769380501999,11.89680227,2801.1,2799.5,0.748]
[1769380502298,11.89680227,2800.9,2799.3,12.65833679]
[1769380502496,11.89680227,2800.9,2799.1,12.70636188]
[1769380502693,11.89680227,2800.9,2799.3,11.91334152]
[1769380503005,12.43217855,2801.2,2799.6,11.81322173]
[1769380503209,13.76474252,2801.1,2799.8,11.81322173]
[1769380504365,13.76574252,2801.1,2799.9,0.89288903]
[1769380504518,13.76574252,2801.1,2800.0,11.81322173]
[1769380504519,12.43317855,2801.1,2800.0,11.81322173]
[1769380505637,12.43317855,2801.1,2799.9,0.89288903]
[1769380507135,0.001,2801.1,2800.0,11.91334152]
[1769380507922,0.001,2801.1,2800.3,11.81322173]
[1769380508133,0.001,2801.1,2800.4,1.19133415]
[1769380508536,0.001,2801.1,2800.5,0.89269773]
[1769380510134,12.43317855,2801.1,2800.2,0.10011979]
[1769380510341,12.43317855,2801.1,2800.2,0.89277535]
[1769380510541,12.43317855,2801.1,2800.3,0.89274259]
[1769380510740,13.6765964,2801.1,2800.0,0.99295655]
[1769380511266,14.56910903,2801.1,2799.9,0.89286293]
[1769380511461,14.56910903,2801.1,2799.1,0.10011979]
[1769380511760,14.56910903,2801.1,2799.5,0.99311979]
[1769380511926,14.56910903,2801.1,2799.6,0.89298198]
[1769380512125,12.43217855,2800.9,2799.6,0.89298198]
[1769380512367,12.43217855,2800.9,2799.5,0.99311677]
[1769380512666,12.43217855,2800.9,2799.6,0.89297935]
[1769380512856,12.43217855,2800.7,2799.7,0.89293545]
[1769380514741,12.43217855,2800.7,2799.6,3.57188981]
[1769380515060,12.43217855,2800.7,2799.7,0.45649943]
[1769380517075,12.43217855,2800.7,2799.8,0.89292092]
[1769380517287,0.001,2800.9,2799.8,12.80626244]
[1769380518377,0.001,2800.9,2800.1,11.81322173]
[1769380518581,0.001,2800.9,2800.0,0.10011979]
[1769380518754,0.001,2800.9,2800.0,1.39075801]
[1769380519406,0.001,2800.9,2800.1,0.89282525]
[1769380519582,12.1281899,2800.9,2800.1,0.89282525]
[1769380520083,12.1281899,2800.9,2800.1,12.70604698]
[1769380520084,0.001,2800.9,2800.1,12.70604698]
[1769380521385,0.001,2800.9,2800.3,12.70598321]
[1769380521681,0.001,2800.9,2800.4,13.45093662]
[1769380523357,0.001,2800.9,2800.5,0.89269773]
[1769380524757,0.001,2800.9,2800.4,3.57079093]
[1769380524758,0.001,2800.9,2800.4,0.89271593]
[1769380524952,12.1281899,2800.9,2799.9,4.31946849]
[1769380525183,12.1281899,2800.9,2800.1,0.89280853]
[1769380525499,12.1281899,2800.9,2799.7,1.34942035]
[1769380525500,13.34000889,2800.8,2799.7,1.34942035]
[1769380525791,13.34000889,2800.8,2799.3,0.10011979]
[1769380525950,13.34000889,2800.8,2799.7,0.8929474]
[1769380528491,0.001,2800.7,2799.6,3.57192863]
[1769380528693,0.001,2800.7,2799.6,15.38515036]
[1769380530461,0.001,2800.7,2799.7,0.10011979]
[1769380530682,0.001,2800.7,2799.8,1.54852702]
[1769380531287,0.001,2800.7,2799.8,1.58424385]
[1769380531511,0.001,2800.7,2799.8,13.39746558]
[1769380531719,0.001,2800.7,2799.8,13.36174875]
[1769380532416,0.001,2800.9,2799.8,13.36174875]
[1769380532417,0.001,2801.3,2800.2,11.81322173]
[1769380532586,0.001,2801.3,2800.1,0.10011979]
[1769380533113,12.1281899,2801.3,2800.1,11.91334152]
[1769380533285,0.001,2801.3,2800.1,11.91334152]
[1769380533485,0.001,2801.3,2800.3,11.91334152]
[1769380533718,0.001,2801.3,2800.4,1.19133415]
[1769380534481,0.001,2801.3,2800.5,0.89269773]
[1769380540322,0.001,2801.1,2800.5,0.89269773]
[1769380547830,12.38760679,2801.1,2800.5,0.89269773]
[1769380548729,0.001,2801.3,2800.5,12.70591946]
[1769380549031,12.38760679,2801.3,2800.5,1.27325315]
[1769380551036,12.51460679,2802.4,2800.7,12.44799381]
[1769380551824,12.38660679,2802.4,2800.7,12.5481136]
[1769380552024,12.38660679,2802.4,2801.0,12.44799381]
[1769380552330,12.20960679,2802.4,2801.1,13.99652083]
[1769380552920,12.20960679,2802.4,2801.3,12.44799381]
[1769380553420,12.20960679,2802.4,2801.2,0.89247465]
[1769380554230,12.20960679,2802.4,2801.2,13.34046846]
[1769380555639,12.38660679,2802.7,2801.2,13.34046846]
[1769380555848,13.71446276,2802.7,2801.4,12.44799381]
[1769380557042,13.71446276,2802.7,2801.5,0.89237908]
[1769380557206,13.71446276,2802.7,2801.5,13.34037289]
[1769380560339,13.71446276,2802.7,2801.3,2.238612]
[1769380560340,14.60646381,2802.7,2801.3,2.238612]
[1769380560638,14.60646381,2802.7,2801.2,3.56979152]
[1769380560841,14.60646381,2802.7,2801.4,0.89239034]
[1769380561217,14.60646381,2802.7,2801.5,0.89236765]
[1769380562711,14.60646381,2802.7,2801.0,3.57012922]
[1769380562935,12.38660679,2802.5,2801.1,1.77587812]
[1769380564715,12.38660679,2802.5,2801.2,0.89247465]
[1769380564915,12.38760679,2802.5,2801.2,0.89247465]
[1769380565855,12.38760679,2802.5,2801.3,12.14860329]
[1769380567047,12.38760679,2802.5,2801.4,13.04101422]
[1769380567351,13.62636747,2802.5,2801.5,1.6610658]
[1769380567511,13.62636747,2802.5,2801.5,12.14860329]
[1769380568419,12.38760679,2802.5,2801.5,12.14860329]
[1769380569653,12.38760679,2802.5,2801.6,0.89234723]
[1769380575858,12.38760679,2802.5,2801.6,13.83087162]
[1769380578775,12.64426704,2804.9,2802.7,12.93852439]
[1769380579056,12.64426704,2804.3,2802.8,13.12478095]
[1769380579255,12.64426704,2804.3,2802.8,0.18625656]
[1769380579480,12.64426704,2804.1,2802.9,0.89193335]
[1769380579756,13.5358353,2804.1,2802.8,0.18625656]
[1769380579962,14.42787716,2804.1,2802.8,0.18625656]
[1769380580376,14.42787716,2804.1,2802.8,1.07821938]
[1769380580657,12.64426704,2803.9,2802.8,0.18625656]
[1769380581682,13.53589941,2803.9,2802.8,0.18625656]
[1769380582471,12.64426704,2803.7,2801.7,1.74003573]
[1769380582627,12.64426704,2803.5,2801.7,0.89229908]
[1769380582825,13.11239775,2803.5,2801.7,0.89229908]
[1769380583026,12.64426704,2803.5,2801.7,0.89229908]
[1769380583444,12.64426704,2803.3,2801.4,13.78564418]
[1769380583639,12.64426704,2803.1,2801.5,0.89237908]
[1769380583856,12.64426704,2802.9,2801.6,1.82475546]
[1769380584279,12.64426704,2802.5,2800.7,0.002]
[1769380584585,12.64426704,2802.3,2800.7,0.002]
[1769380585378,12.64426704,2802.3,2800.7,0.89463065]
[1769380585553,12.64426704,2802.3,2800.7,0.002]
[1769380585753,12.64426704,2802.1,2800.7,0.002]
[1769380586185,12.64426704,2801.7,2800.7,0.002]
[1769380587779,12.64426704,2801.5,2800.7,0.002]
[1769380587948,13.99792847,2801.4,2800.7,0.002]
[1769380589862,14.89036163,2801.4,2800.7,0.002]
[1769380590944,14.89036163,2801.4,2800.9,0.002]
[1769380590945,13.99792847,2801.4,2800.9,0.002]
[1769380591642,14.8903683,2801.4,2800.6,0.002]
[1769380591848,12.64426704,2801.2,2800.6,0.002]
[1769380593381,12.82676332,2801.6,2800.6,0.002]
[1769380593886,0.128,2802.0,2800.9,12.17286536]
[1769380594082,13.71869809,2802.9,2801.4,12.17286536]
[1769380594248,13.71869809,2802.9,2801.0,0.99265816]
[1769380594249,12.82676332,2802.4,2801.5,1.21728654]
[1769380594578,12.82676332,2802.2,2801.0,0.89253837]
[1769380595384,12.82676332,2802.2,2801.0,13.06540373]
[1769380596373,12.82676332,2802.5,2801.0,13.06540373]
[1769380596592,12.82676332,2802.9,2801.0,13.06540373]
[1769380596746,0.128,2803.2,2801.4,12.17286536]
[1769380596946,12.82676332,2803.7,2801.7,30.0]
[1769380597157,12.82676332,2803.7,2801.8,12.91986536]
[1769380597570,12.82676332,2803.7,2802.0,12.17286536]
[1769380597785,1.28277633,2803.7,2802.2,12.17286536]
[1769380597987,0.001,2803.9,2802.3,0.89212432]
[1769380598282,0.001,2803.9,2802.4,12.17286536]
[1769380598790,12.82676332,2803.8,2802.2,0.89214815]
[1769380600067,12.82676332,2803.8,2802.1,3.56862465]
[1769380600068,13.71841094,2803.8,2802.1,3.56862465]
[1769380600268,12.82676332,2803.6,2802.2,1.6633678]
[1769380601784,12.82676332,2803.6,2802.0,0.892188]
[1769380602263,12.82676332,2803.4,2801.8,0.89228353]
[1769380603256,0.001,2803.4,2801.8,13.06514889]
[1769380604063,0.001,2803.4,2802.0,12.17286536]
[1769380604273,0.001,2803.4,2802.4,12.17286536]
[1769380604452,0.001,2803.4,2802.5,13.47936433]
[1769380606182,12.82776332,2803.4,2802.5,1.30649897]
[1769380606387,12.82776332,2803.4,2802.3,0.89212398]
[1769380606567,12.82776332,2803.4,2801.9,1.6392475]
[1769380606766,12.82776332,2803.4,2801.9,0.747]
[1769380608088,12.82776332,2803.4,2801.8,0.89227221]
[1769380608285,12.82676332,2803.2,2801.7,3.56925321]
[1769380608598,12.82676332,2803.0,2801.8,0.44615686]
[1769380610963,1.37185694,2803.1,2801.8,0.44615686]
[1769380610964,1.37185694,2803.1,2801.9,0.89225168]
[1769380611169,12.82676332,2803.3,2801.9,0.89225168]
[1769380611367,3.69549245,2803.9,2801.9,0.89225168]
[1769380611368,13.01302819,2804.8,2803.1,12.17286536]
[1769380611683,12.82676332,2804.7,2803.1,12.17286536]
[1769380613013,12.82676332,2804.7,2803.2,0.89183789]
[1769380613328,14.19857412,2804.6,2803.3,1.66320548]
[1769380613995,1.3718108,2804.6,2803.3,13.83607084]
[1769380614301,12.82676332,2804.9,2803.3,13.83607084]
[1769380614473,13.71806689,2804.9,2803.3,13.83607084]
[1769380614674,12.82676332,2804.9,2803.3,13.83607084]
[1769380615015,12.82676332,2804.9,2803.4,0.89177427]
[1769380615191,12.82676332,2804.9,2803.4,13.06463963]
[1769380615513,1.28267633,2804.8,2803.5,1.66317367]
[1769380615718,1.28267633,2804.8,2803.5,13.83603903]
[1769380616608,13.71796829,2805.2,2803.5,13.83603903]
[1769380617117,12.82676332,2805.2,2803.7,12.17286536]
[1769380617279,0.001,2804.4,2803.7,12.17286536]
[1769380618114,0.001,2805.8,2804.2,0.10011979]
[1769380618279,0.001,2805.8,2804.3,12.91986536]
[1769380618474,0.001,2805.8,2804.4,13.47486388]
[1769380618919,13.71771718,2806.0,2804.4,13.47486388]
[1769380619287,13.71771718,2806.0,2804.5,0.89142449]
[1769380619804,1.44439334,2806.1,2804.5,13.06428985]
[1769380621213,1.44439334,2806.1,2804.7,12.17286536]
[1769380621410,1.44439334,2806.1,2805.0,12.17286536]
[1769380623481,1.44439334,2806.1,2805.2,11.86663219]
[1769380623699,1.44439334,2806.1,2804.8,12.87190658]
[1769380623929,14.17585,2806.1,2804.9,0.89127875]
[1769380624108,14.17585,2806.1,2805.0,0.89126017]
[1769380624291,14.23813258,2806.0,2804.9,0.89127458]
[1769380624485,14.23813258,2806.0,2805.0,0.89126049]
[1769380625692,14.23813258,2806.0,2804.9,3.56517655]
[1769380627917,15.12908081,2806.0,2804.8,1.89660133]
[1769380628111,15.12908081,2806.0,2804.8,0.89132694]
[1769380628279,15.12908081,2806.0,2804.8,0.89131998]
[1769380628610,15.12908081,2806.0,2804.8,0.89132631]
[1769380629322,14.23813258,2806.0,2804.8,0.89132631]
[1769380629614,15.12908629,2806.0,2804.8,0.89132631]
[1769380629815,12.73145666,2805.8,2804.8,0.89132631]
[1769380630023,12.73245666,2805.8,2804.7,3.56536049]
[1769380630320,0.001,2805.8,2804.8,11.86663219]
[1769380630484,0.001,2805.8,2804.9,1.54319927]
[1769380631084,0.001,2805.8,2804.6,0.89136092]
[1769380631085,13.62347248,2805.8,2804.6,0.89137946]
[1769380631310,12.73245666,2805.8,2804.6,0.89137946]
[1769380631816,0.001,2805.8,2804.6,12.75801165]
[1769380642625,3.56305231,2806.6,2804.6,12.75801165]
[1769380642626,0.128,2806.8,2805.1,12.25004705]
[1769380642830,12.04045511,2807.2,2805.5,12.25004705]
[1769380643007,12.04045511,2807.2,2805.7,12.25004705]
[1769380643202,12.04045511,2807.2,2805.6,1.2250047]
[1769380643420,12.93102915,2807.2,2805.6,1.9710047]
[1769380643838,12.93102915,2807.2,2805.6,0.746]
[1769380644310,12.93102915,2807.2,2805.6,1.63705508]
[1769380644807,12.04045511,2807.2,2805.6,1.63705508]
[1769380645010,12.93102825,2807.2,2805.6,1.63705508]
[1769380645206,12.04045511,2806.7,2804.0,12.25004705]
[1769380645535,12.04045511,2806.3,2804.2,3.56596683]
[1769380645710,12.04045511,2806.1,2804.2,0.89149821]
[1769380645906,12.04045511,2805.9,2804.1,0.89153188]
[1769380646112,12.04045511,2805.9,2804.0,0.89156463]
[1769380646446,12.04045511,2805.9,2803.8,4.31255959]
[1769380646447,12.93149834,2805.7,2803.9,0.89161525]
[1769380651036,12.93150184,2805.7,2803.9,0.89161525]
[1769380651753,0.08061179,2806.1,2803.9,0.89161525]
[1769380651951,12.04045511,2806.9,2804.6,30.0]
[1769380652152,12.04045511,2806.9,2805.2,12.25004705]
[1769380652447,3.56157451,2807.8,2805.5,13.1411538]
[1769380652448,12.04045511,2807.6,2805.5,13.1411538]
[1769380653433,12.04045511,2807.6,2805.5,0.89110675]
[1769380654311,12.44169767,2807.4,2805.3,0.89117028]
[1769380654513,12.44169767,2807.2,2805.4,0.52019164]
[1769380656721,12.44169767,2807.0,2805.5,0.89110675]
[1769380658818,12.44169767,2807.0,2805.3,12.62991775]
[1769380659716,13.78492661,2807.3,2805.3,12.62991775]
[1769380659917,13.78492661,2807.3,2805.5,11.73874747]
[1769380660239,1.37849266,2807.2,2805.7,11.73874747]
[1769380661142,1.37849266,2807.2,2805.8,12.62975894]
[1769380661643,12.44169767,2807.3,2805.8,12.62975894]
[1769380662347,12.44169767,2807.7,2805.8,12.62975894]
[1769380663351,12.44169767,2807.7,2805.9,30.0]
[1769380663523,12.44169767,2807.7,2806.0,11.73874747]
[1769380663849,12.44169767,2807.7,2805.8,0.89101147]
[1769380663850,1.24416977,2807.6,2806.2,11.73874747]
[1769380665247,13.68586744,2807.6,2806.3,0.89085272]
[1769380666245,0.001,2807.1,2806.3,0.89085272]
[1769380667050,0.001,2807.1,2806.1,1.17387475]
[1769380667248,0.001,2807.1,2805.7,0.89104323]
[1769380667249,12.44269767,2807.1,2805.7,0.89104323]
[1769380667548,12.44269767,2807.1,2805.7,12.6297907]
[1769380669120,0.001,2807.1,2805.7,12.6297907]
[1769380670663,0.001,2807.1,2805.9,11.73874747]